bitfinex/quotes_ETHUSD_20260226
["timestamp","ask_amount","ask_price","bid_price","bid_amount"]
[1772074872856,1.67941577,2056.3,2055.6,1.71613192]
[1772074873243,0.4616002,2056.2,2055.7,0.49997161]
[1772074875671,0.4616002,2056.2,2055.8,0.49997161]
[1772074878338,0.4616002,2056.2,2055.8,1.71603912]
[1772074878878,0.4616002,2056.1,2055.6,0.49997161]
[1772074879337,4.86465093,2056.5,2055.5,2.51120143]
[1772074879338,0.002,2056.5,2056.1,30.0]
[1772074879536,0.002,2057.1,2056.3,2.09090418]
[1772074879537,0.4636002,2057.1,2056.3,2.09090418]
[1772074879761,0.4636002,2057.1,2056.3,0.49997161]
[1772074879762,0.4616002,2057.0,2056.3,0.49997161]
[1772074880152,0.4616002,2056.8,2055.8,0.49997161]
[1772074880347,0.4616002,2056.5,2055.8,0.49997161]
[1772074883579,0.4616002,2056.3,2055.8,0.49997161]
[1772074883789,0.4616002,2056.3,2056.0,0.001]
[1772074886488,0.47563931,2056.4,2056.0,0.001]
[1772074889200,0.002,2056.8,2056.2,30.0]
[1772074889365,0.002,2056.8,2056.3,0.4825395]
[1772074890770,0.47763931,2056.8,2056.3,0.4825395]
[1772074891267,0.47763931,2056.8,2056.3,1.69827705]
[1772074892171,0.002,2056.8,2056.4,0.4825395]
[1772074892970,0.47716023,2056.7,2056.0,1.21694896]
[1772074893167,0.47716023,2056.7,2056.1,1.6968953]
[1772074893494,0.47716023,2056.7,2056.2,0.4810509]
[1772074895380,0.47716023,2056.7,2056.3,1.2157759]
[1772074895597,0.47716023,2056.7,2056.2,0.4810509]
[1772074895801,0.47716023,2056.7,2056.2,1.69688459]
[1772074896483,0.47716023,2056.7,2056.3,0.001]
[1772074898910,0.47716023,2056.7,2056.3,0.4820509]
[1772074899819,0.47716023,2056.7,2056.4,1.21571678]
[1772074900184,0.47716023,2056.5,2056.0,0.001]
[1772074901340,0.47716023,2056.5,2056.0,1.21695089]
[1772074902208,0.47716023,2056.4,2056.0,0.001]
[1772074903309,1.49195552,2056.2,2055.8,0.001]
[1772074903643,1.49195552,2056.2,2055.4,1.21627474]
[1772074903644,1.463,2056.1,2055.6,0.4810509]
[1772074903847,1.463,2056.1,2055.5,1.2172453]
[1772074903848,0.47716023,2056.0,2055.5,0.001]
[1772074904311,0.47716023,2055.8,2055.5,0.001]
[1772074904509,0.47716023,2055.8,2054.9,0.0011]
[1772074904709,0.47716023,2055.5,2054.9,1.69870795]
[1772074904935,0.47716023,2055.5,2054.9,0.0011]
[1772074905740,0.47716023,2055.5,2054.9,1.21770328]
[1772074905941,0.47716023,2055.5,2054.9,0.0011]
[1772074906323,0.47716023,2055.3,2054.9,0.0011]
[1772074907129,0.47716023,2055.5,2054.9,0.4821509]
[1772074907910,0.47716023,2055.7,2055.1,0.4810509]
[1772074908322,0.47716023,2055.7,2055.5,0.001]
[1772074909333,1.69330331,2055.7,2055.5,0.001]
[1772074909538,0.47716023,2055.6,2055.2,0.001]
[1772074912519,1.69335177,2055.6,2055.2,0.001]
[1772074913048,3.15935177,2055.6,2055.2,0.001]
[1772074913216,0.47716023,2055.5,2055.2,0.001]
[1772074914247,0.47716023,2055.4,2054.9,0.0011]
[1772074914746,0.47716023,2055.5,2054.9,0.0011]
[1772074916447,1.68958211,2055.5,2054.9,1.67399221]
[1772074916621,0.47331985,2055.5,2055.0,0.45632368]
[1772074917426,1.466,2055.6,2055.0,0.45632368]
[1772074918522,1.21607294,2055.8,2055.2,0.45632368]
[1772074919175,1.68939279,2055.8,2055.2,0.45632368]
[1772074919546,0.47331985,2055.7,2054.9,1.67400146]
[1772074919935,0.47331985,2055.7,2055.1,0.0011]
[1772074920252,0.001,2055.5,2055.1,0.0011]
[1772074920826,0.47431985,2055.5,2055.1,0.0011]
[1772074921228,0.001,2055.5,2055.1,0.45742368]
[1772074922678,0.47331985,2055.4,2055.1,0.0011]
[1772074923024,0.001,2055.5,2055.1,0.45742368]
[1772074924043,0.47331985,2055.4,2055.1,0.0011]
[1772074925054,1.68963021,2055.4,2055.1,0.0011]
[1772074925853,0.001,2055.5,2055.1,0.45742368]
[1772074927463,0.001,2055.5,2055.1,1.6738746]
[1772074927648,0.47331985,2055.4,2054.9,0.0011]
[1772074928232,0.47331985,2055.2,2054.9,0.0011]
[1772074928862,0.47331985,2055.2,2054.5,0.45632368]
[1772074930860,1.68980566,2055.1,2054.5,1.67316334]
[1772074931452,0.47331985,2055.0,2054.5,0.45632368]
[1772074931786,0.47331985,2055.0,2054.8,0.0011]
[1772074932571,1.69079068,2055.2,2054.8,0.0011]
[1772074933542,0.001,2055.2,2054.8,0.45742368]
[1772074933853,0.47331985,2055.1,2054.8,0.0011]
[1772074934445,1.49195552,2055.1,2054.6,0.0011]
[1772074934673,0.47331985,2055.0,2054.6,0.0011]
[1772074935561,1.68988018,2055.0,2054.6,0.0011]
[1772074936161,0.47331985,2054.9,2054.4,0.0011]
[1772074936478,0.47331985,2054.5,2054.3,0.0011]
[1772074936648,1.467,2054.5,2053.9,0.0011]
[1772074936964,0.47331985,2054.4,2053.9,0.0011]
[1772074937559,0.47331985,2054.3,2053.9,0.0011]
[1772074938183,1.467,2054.5,2053.9,0.45742368]
[1772074939159,2.68363071,2054.9,2053.9,0.45742368]
[1772074939359,2.68361311,2054.9,2054.1,0.45632368]
[1772074939595,0.47331985,2054.8,2054.1,1.67335124]
[1772074939775,0.47331985,2054.8,2054.1,0.45632368]
[1772074940096,0.47331985,2054.8,2054.1,1.67339089]
[1772074940868,0.47331985,2054.8,2054.2,0.45632368]
[1772074941066,2.68361311,2054.9,2054.2,0.45632368]
[1772074941775,3.15693296,2054.9,2054.2,0.45632368]
[1772074942082,1.49195552,2054.4,2053.9,0.0011]
[1772074942281,1.49195552,2054.4,2053.9,0.45742368]
[1772074942581,1.96527537,2054.4,2053.9,0.0011]
[1772074944204,3.1822223,2054.4,2054.1,0.0011]
[1772074944389,4.6492223,2054.4,2054.1,0.0011]
[1772074944594,2.68390762,2054.4,2054.1,0.0011]
[1772074945358,1.49195552,2054.2,2053.9,0.0011]
[1772074945585,1.49195552,2054.2,2053.7,0.0011]
[1772074945586,0.47331985,2053.9,2053.6,0.001]
[1772074945810,0.47331985,2053.9,2053.2,0.45632368]
[1772074946019,0.47331985,2053.9,2053.0,1.71434009]
[1772074946020,1.21737436,2053.6,2053.0,1.71434009]
[1772074946427,3.20328829,2053.7,2053.0,1.71434009]
[1772074946639,3.20328829,2053.7,2053.1,0.49665426]
[1772074948116,3.20328829,2053.7,2053.1,1.71427827]
[1772074948408,3.20328829,2053.7,2053.1,0.49665426]
[1772074949299,0.49397382,2053.7,2053.2,0.49665426]
[1772074949503,1.21728327,2053.8,2053.2,0.49665426]
[1772074950000,1.71125709,2053.8,2053.2,0.49665426]
[1772074950197,2.68523336,2053.9,2053.3,0.49665426]
[1772074950399,1.21710779,2054.1,2053.3,0.49665426]
[1772074950599,1.71108161,2054.1,2053.3,0.49665426]
[1772074950813,0.49397382,2054.0,2053.3,0.49665426]
[1772074950989,0.49397382,2054.0,2053.1,0.49665426]
[1772074951197,0.49397382,2053.7,2053.1,0.49665426]
[1772074953521,0.45521828,2053.8,2053.2,0.47574099]
[1772074955692,1.21731508,2053.7,2053.2,0.47574099]
[1772074956023,1.21731508,2053.7,2053.3,0.0011]
[1772074956218,5.32425146,2053.8,2053.3,0.0011]
[1772074956219,1.67251273,2053.8,2053.3,0.0011]
[1772074956396,2.68824304,2053.9,2053.3,0.47684099]
[1772074956590,1.471,2053.9,2053.3,0.47684099]
[1772074957234,0.001,2054.1,2053.4,0.47574099]
[1772074957520,0.001,2054.1,2053.5,0.47574099]
[1772074957918,0.001,2054.1,2053.7,0.47574099]
[1772074958104,1.21684108,2054.5,2053.6,1.21737436]
[1772074958305,1.21684108,2054.5,2053.7,0.47574099]
[1772074959112,0.45521828,2054.1,2053.4,0.47574099]
[1772074959310,0.45521828,2054.4,2053.5,0.47574099]
[1772074959896,0.45521828,2054.2,2053.5,1.69316239]
[1772074961233,1.49195552,2054.2,2053.3,0.0011]
[1772074961416,0.45521828,2053.6,2053.0,0.0011]
[1772074961821,1.67265192,2053.5,2053.0,0.0011]
[1772074963830,4.86930858,2053.7,2053.0,0.0011]
[1772074964330,0.45521828,2053.6,2053.0,0.0011]
[1772074965024,4.86930858,2053.7,2053.0,0.47684099]
[1772074966032,1.67253336,2053.8,2053.0,0.47684099]
[1772074966832,1.67253336,2053.8,2053.0,1.69454331]
[1772074968017,1.2171549,2054.0,2053.1,0.47574099]
[1772074969213,1.2171549,2054.0,2053.3,0.47574099]
[1772074969416,0.001,2053.5,2053.3,0.47574099]
[1772074970214,0.001,2053.5,2053.4,0.47574099]
[1772074970532,1.21701896,2054.2,2053.5,0.47574099]
[1772074970904,1.67223724,2054.2,2053.5,0.47574099]
[1772074972437,1.67211859,2054.4,2053.6,0.47574099]
[1772074972811,2.68686563,2054.5,2053.6,0.47574099]
[1772074974438,2.68686563,2054.5,2053.8,0.47574099]
[1772074975335,2.68684487,2054.5,2053.8,0.47574099]
[1772074976762,2.68684487,2054.5,2054.0,0.48785879]
[1772074976924,1.47,2054.5,2054.0,0.48785879]
[1772074977252,2.68684184,2054.5,2054.0,0.48785879]
[1772074977463,1.47,2054.5,2054.0,0.48785879]
[1772074978063,2.68684588,2054.5,2054.0,0.48785879]
[1772074979146,0.001,2054.7,2054.5,30.0]
[1772074979316,0.001,2055.5,2054.6,0.48785879]
[1772074979317,1.21684588,2055.1,2054.6,0.48785879]
[1772074979527,3.69233876,2055.4,2054.6,0.48785879]
[1772074979718,3.22215414,2055.4,2054.6,0.48785879]
[1772074979938,2.00530826,2055.4,2054.6,0.48785879]
[1772074980546,1.6870305,2055.3,2054.6,0.48785879]
[1772074980922,1.21684588,2055.3,2054.6,0.48785879]
[1772074981321,1.21684588,2055.3,2053.8,9.05992785]
[1772074981322,0.47018462,2055.1,2053.6,0.08192]
[1772074981525,0.47018462,2055.1,2053.0,0.0011]
[1772074981526,0.47018462,2053.8,2053.0,0.0011]
[1772074981822,0.47018462,2053.8,2052.3,0.48785879]
[1772074981823,1.08014498,2053.0,2052.3,31.21814549]
[1772074982022,1.08014498,2053.0,2051.6,5.66302702]
[1772074982023,1.08344498,2052.7,2051.8,10.464]
[1772074982250,1.08014498,2052.7,2051.8,10.464]
[1772074982552,2.29479086,2052.7,2051.8,10.464]
[1772074983457,2.29479086,2052.7,2052.0,30.0]
[1772074983761,1.80603801,2053.4,2052.7,5.42078011]
[1772074983936,0.58853921,2053.4,2052.8,3.08947745]
[1772074984331,0.58853921,2053.4,2052.7,30.0]
[1772074985341,1.21737558,2053.6,2052.7,30.0]
[1772074985541,0.58853921,2053.6,2052.8,1.21784879]
[1772074987965,1.80597285,2053.5,2052.8,30.0]
[1772074988971,0.58853921,2053.4,2052.4,1.21808614]
[1772074989136,0.58853921,2053.4,2052.5,30.0]
[1772074989559,0.58853921,2053.4,2052.5,7.401]
[1772074990065,1.80609144,2053.3,2052.6,1.21796745]
[1772074990456,1.80609144,2053.3,2052.5,1.21798641]
[1772074990833,0.58853921,2053.2,2052.5,1.21798641]
[1772074991358,0.58853921,2053.5,2052.6,30.0]
[1772074991731,0.58853921,2053.5,2052.7,1.303]
[1772074993362,0.58853921,2053.3,2052.7,1.303]
[1772074993546,0.58853921,2053.3,2052.7,2.52090775]
[1772074993745,0.58953921,2053.2,2052.7,1.303]
[1772074993947,0.58953921,2053.2,2052.7,2.52090542]
[1772074994850,0.58953921,2053.2,2052.7,2.52090349]
[1772074996446,0.58853921,2053.1,2052.5,1.21798751]
[1772074996642,0.001,2053.2,2052.5,1.21798751]
[1772074996846,0.001,2053.2,2052.6,30.0]
[1772074997869,0.50936519,2053.6,2052.8,32.09548721]
[1772074998168,0.50936519,2053.9,2053.0,30.0]
[1772074998466,0.50936519,2054.2,2053.1,2.09548721]
[1772074998660,0.50936519,2054.2,2053.2,30.0]
[1772074998874,0.50936519,2054.5,2053.5,30.0]
[1772075000181,0.50936519,2054.4,2053.7,30.0]
[1772075000484,0.50936519,2054.4,2053.7,1.312]
[1772075000644,0.001,2054.9,2053.8,30.0]
[1772075000645,0.50936519,2054.7,2053.8,30.0]
[1772075002073,0.001,2054.9,2054.1,30.0]
[1772075002250,0.001,2054.9,2054.3,30.0]
[1772075002450,0.51036519,2054.9,2054.3,30.0]
[1772075003571,0.51036519,2054.9,2054.2,1.316]
[1772075004672,0.50936519,2054.8,2054.2,2.53297645]
[1772075005975,0.51036519,2054.7,2054.2,2.53297645]
[1772075008876,1.21764188,2054.9,2054.4,2.09548721]
[1772075008877,0.001,2054.9,2054.4,2.09548721]
[1772075009072,0.001,2054.9,2054.5,30.0]
[1772075009302,0.001,2055.5,2054.7,30.0]
[1772075009303,0.51036519,2055.5,2054.7,30.0]
[1772075009570,0.51036519,2055.5,2054.3,9.087]
[1772075009571,0.50936519,2055.4,2054.3,9.087]
[1772075009775,0.50936519,2055.4,2054.4,1.325]
[1772075010656,0.50936519,2055.4,2054.5,30.0]
[1772075010857,0.50936519,2055.3,2054.6,1.21678185]
[1772075013303,0.50936519,2055.2,2054.5,4.86712742]
[1772075014509,0.50936519,2055.2,2054.6,30.0]
[1772075014865,0.50936519,2055.2,2054.5,4.86712742]
[1772075017876,0.50936519,2055.2,2054.7,0.0011]
[1772075018070,0.51036519,2055.1,2054.7,0.0011]
[1772075018502,0.51036519,2055.1,2054.5,0.0011]
[1772075024513,0.001,2055.1,2054.5,0.0011]
[1772075025113,0.001,2055.1,2054.8,1.49363933]
[1772075025324,0.50981519,2055.5,2054.9,1.332]
[1772075027209,0.50981519,2055.5,2055.0,1.21654501]
[1772075030881,0.001,2055.5,2055.0,1.21654501]
[1772075031385,0.001,2055.5,2055.2,0.001]
[1772075031586,0.002,2055.3,2055.2,0.001]
[1772075032916,4.86629869,2055.8,2055.2,0.001]
[1772075032917,0.002,2056.8,2056.7,2.53443337]
[1772075033083,0.002,2057.4,2056.7,2.53443337]
[1772075033084,0.4753868,2058.4,2056.8,0.07789096]
[1772075033417,0.4753868,2058.6,2058.0,1.21477162]
[1772075033619,0.4753868,2058.9,2058.1,3.29465901]
[1772075033850,0.4753868,2059.4,2058.4,1.49363933]
[1772075034139,0.4753868,2059.4,2058.5,1.35]
[1772075034687,0.4753868,2059.4,2058.1,0.08192]
[1772075034688,0.4753868,2059.4,2058.0,1.49363933]
[1772075034918,0.4753868,2059.2,2058.0,7.971]
[1772075035486,0.4753868,2059.0,2058.0,7.971]
[1772075035681,0.4753868,2059.0,2058.0,7.44475963]
[1772075035888,0.4753868,2059.0,2058.0,1.21475963]
[1772075036318,0.4753868,2059.0,2058.0,8.356]
[1772075036489,0.4753868,2059.0,2058.0,6.708]
[1772075036833,0.4753868,2059.0,2057.9,4.06046545]
[1772075037736,0.47263413,2058.8,2058.0,1.352]
[1772075038092,2.70787994,2058.9,2057.4,1.352]
[1772075038093,0.47263413,2058.2,2057.4,1.352]
[1772075040798,0.47263413,2058.2,2057.5,1.21506682]
[1772075041022,0.47263413,2058.2,2056.8,4.73545838]
[1772075041023,0.47263413,2057.9,2056.8,4.73545838]
[1772075041215,0.47263413,2057.8,2056.9,1.352]
[1772075042556,2.62463484,2057.9,2056.5,1.57555933]
[1772075042557,0.47263413,2057.6,2056.5,1.21560411]
[1772075042714,1.68764919,2057.6,2056.7,1.21553945]
[1772075043041,0.47263413,2057.5,2056.6,1.352]
[1772075043270,0.47263413,2057.5,2056.4,4.106]
[1772075043483,0.47263413,2057.5,2056.4,1.353]
[1772075043755,0.47263413,2057.5,2056.4,1.34800986]
[1772075044324,0.47263413,2057.2,2056.0,1.2158975]
[1772075044572,0.47263413,2057.5,2056.4,30.0]
[1772075044730,0.47263413,2057.0,2056.2,1.21583503]
[1772075045617,0.47263413,2057.0,2056.1,1.21585231]
[1772075045824,0.47263413,2057.0,2056.2,1.354]
[1772075046889,1.68805539,2056.9,2056.2,2.56982598]
[1772075047137,0.47263413,2056.9,2056.2,2.56982598]
[1772075047943,0.47263413,2056.9,2056.2,1.21582598]
[1772075048149,0.47263413,2056.9,2056.1,2.56785188]
[1772075049225,0.47263413,2056.8,2056.1,2.56785188]
[1772075050053,0.47263413,2057.1,2056.1,2.56785188]
[1772075050439,0.47263413,2057.1,2056.2,0.48319291]
[1772075051045,0.47263413,2057.1,2056.3,1.2157759]
[1772075051642,0.47263413,2057.0,2056.2,0.48319291]
[1772075051861,0.47263413,2057.0,2056.1,1.352]
[1772075053060,0.47263413,2056.8,2056.1,1.352]
[1772075053451,0.47263413,2056.8,2056.1,2.5678881]
[1772075053998,0.47263413,2056.8,2055.3,2.27605701]
[1772075053999,0.47263413,2056.6,2055.3,2.27605701]
[1772075054136,0.47263413,2056.6,2054.7,0.001]
[1772075054137,1.49363933,2056.7,2054.7,1.21771708]
[1772075054138,0.47263413,2055.5,2054.7,1.21771708]
[1772075054330,0.47263413,2055.5,2054.7,1.21770212]
[1772075054857,0.47263413,2055.5,2054.7,1.21771746]
[1772075055047,1.21630826,2055.4,2054.7,0.001]
[1772075055246,0.47263413,2055.3,2054.7,0.001]
[1772075056938,0.47263413,2055.3,2054.9,0.001]
[1772075057338,1.21642662,2055.2,2054.9,0.001]
[1772075057865,0.47263413,2055.1,2054.7,0.001]
[1772075059479,0.47263413,2054.9,2054.7,0.001]
[1772075059973,0.47263413,2055.2,2054.7,0.001]
[1772075061651,1.6890621,2055.2,2054.7,0.001]
[1772075062161,1.68906216,2055.2,2054.7,0.001]
[1772075064072,1.21621804,2055.6,2054.7,0.48419291]
[1772075064237,1.68885217,2055.6,2054.7,0.48419291]
[1772075065169,0.47263413,2055.6,2054.7,0.48419291]
[1772075066154,0.47263413,2055.6,2054.8,1.21666342]
[1772075066356,0.47263413,2055.6,2054.8,2.56966342]
[1772075066556,1.68883133,2055.6,2054.8,2.56966342]
[1772075066795,0.45331404,2055.5,2054.7,0.001]
[1772075067085,0.45331404,2055.3,2054.7,0.001]
[1772075068164,1.66974066,2055.2,2054.7,0.001]
[1772075068360,4.8648554,2055.6,2054.7,0.49121092]
[1772075068361,1.66952954,2055.6,2054.7,0.49121092]
[1772075068562,1.2162155,2055.6,2054.7,0.49121092]
[1772075068771,0.45331404,2055.5,2054.7,0.001]
[1772075069426,0.45331404,2055.4,2054.7,0.001]
[1772075069578,0.45331404,2055.4,2054.9,0.0011]
[1772075069969,0.45431404,2055.4,2054.9,0.0011]
[1772075070165,1.21636744,2055.3,2054.9,0.0011]
[1772075070367,1.66968148,2055.3,2054.9,0.0011]
[1772075079082,0.46502355,2055.2,2054.9,0.0011]
[1772075080203,1.68145927,2055.2,2054.9,0.0011]
[1772075081616,1.68145927,2055.2,2054.7,0.001]
[1772075081617,0.46502355,2055.0,2054.7,0.001]
[1772075082510,0.001,2055.1,2054.7,0.001]
[1772075084584,0.001,2055.1,2054.7,1.21772263]
[1772075085489,0.001,2055.1,2054.8,0.49479088]
[1772075085909,0.46602355,2055.4,2054.8,2.0908711]
[1772075086230,0.46602355,2055.4,2054.8,0.49479088]
[1772075086231,0.001,2055.4,2054.8,0.49479088]
[1772075086417,0.46502355,2055.3,2054.7,0.001]
[1772075086728,0.46502355,2055.1,2054.7,0.001]
[1772075087706,1.21640982,2055.3,2054.7,0.001]
[1772075088029,1.68143337,2055.3,2054.7,0.001]
[1772075092642,0.46502355,2055.3,2054.7,0.49579088]
[1772075093323,0.001,2055.4,2054.9,0.49589088]
[1772075093514,0.001,2055.1,2054.9,0.49589088]
[1772075093723,0.001,2055.4,2054.9,0.49589088]
[1772075094245,0.46502355,2055.3,2054.9,0.0011]
[1772075094751,1.68145017,2055.2,2054.9,0.0011]
[1772075095149,0.46502355,2055.2,2054.9,0.0011]
[1772075097225,1.68146066,2055.2,2054.9,0.0011]
[1772075098057,0.46502355,2055.2,2054.9,0.0011]
[1772075098264,1.68145508,2055.2,2054.9,0.0011]
[1772075099234,0.46502355,2055.2,2054.9,0.0011]
[1772075101159,0.48412227,2055.1,2054.9,0.0011]
[1772075101330,0.48412227,2055.1,2054.6,0.001]
[1772075101331,0.48412227,2054.9,2054.6,0.001]
[1772075101535,0.48412227,2054.9,2054.2,0.0011]
[1772075101734,0.48412227,2054.9,2054.2,0.0021]
[1772075101932,1.21654501,2055.0,2054.2,0.0021]
[1772075101933,0.48412227,2054.7,2054.2,0.0021]
[1772075102137,0.48412227,2054.4,2053.4,3.42606817]
[1772075102334,0.48412227,2054.4,2053.5,0.486721]
[1772075102535,0.48412227,2054.4,2053.5,0.001]
[1772075102733,0.48412227,2054.1,2053.5,0.001]
[1772075103320,0.48412227,2054.0,2053.5,0.001]
[1772075104428,0.48412227,2054.3,2053.5,0.486721]
[1772075105232,0.48412227,2054.3,2053.7,0.0011]
[1772075105647,1.70078861,2054.8,2053.9,0.485721]
[1772075106468,0.48412227,2054.2,2053.5,0.0011]
[1772075106633,0.48412227,2054.1,2053.5,0.0011]
[1772075107839,0.48412227,2053.9,2053.5,0.0011]
[1772075109541,0.48412227,2053.9,2053.5,0.0032]
[1772075109944,1.21725581,2053.8,2053.5,0.0032]
[1772075110266,1.21725581,2053.8,2053.5,0.0011]
[1772075111947,0.48412227,2053.9,2053.5,0.0032]
[1772075112261,1.70132322,2053.9,2053.5,0.0032]
[1772075114689,0.48412227,2053.8,2053.5,0.0011]
[1772075114988,0.48412227,2053.8,2053.2,0.0011]
[1772075115141,0.48412227,2053.8,2053.3,0.0021]
[1772075116642,0.48412227,2053.7,2053.3,0.0021]
[1772075118373,0.48412227,2053.7,2053.5,0.0011]
[1772075118674,1.70149663,2053.6,2053.5,0.0011]
[1772075120266,0.48412227,2053.6,2053.5,0.0011]
[1772075120568,1.2173555,2053.7,2053.5,0.0011]
[1772075120870,1.2173555,2053.7,2053.5,0.0032]
[1772075122070,0.001,2054.0,2053.5,0.0011]
[1772075122071,1.70230304,2054.0,2053.5,0.0011]
[1772075123767,0.48412227,2053.9,2053.5,0.0011]
[1772075125346,0.001,2054.0,2053.5,0.0011]
[1772075125578,0.001,2054.0,2053.5,0.486821]
[1772075125871,0.001,2054.0,2053.5,0.0011]
[1772075126463,0.48392722,2054.0,2053.5,0.0011]
[1772075126787,0.48392722,2054.0,2053.5,0.4696421]
[1772075126788,0.001,2054.0,2053.5,0.4696421]
[1772075126968,1.21694004,2054.4,2053.6,0.4685421]
[1772075127866,1.69977671,2054.5,2053.8,0.4685421]
[1772075129852,1.69977671,2054.5,2053.8,1.68575017]
[1772075130054,1.69977671,2054.5,2053.8,0.4685421]
[1772075130252,1.69977671,2054.5,2053.8,1.68579298]
[1772075132355,1.69977671,2054.5,2053.8,0.4685421]
[1772075132684,1.69977671,2054.5,2053.8,1.68578324]
[1772075133282,0.47367215,2054.4,2053.8,1.68578324]
[1772075133880,0.47367215,2054.4,2053.5,0.0011]
[1772075134090,0.47367215,2054.2,2053.5,0.0011]
[1772075134561,0.47367215,2054.0,2053.5,0.0011]
[1772075135061,1.481,2054.1,2053.5,1.67453409]
[1772075135271,1.95467215,2054.1,2053.5,1.67453409]
[1772075135671,0.47367215,2054.0,2053.5,1.2185276]
[1772075135859,1.481,2054.1,2053.6,0.45600649]
[1772075136283,1.481,2054.1,2053.6,1.67333969]
[1772075138387,0.47367215,2054.1,2053.5,0.0011]
[1772075138576,0.47367215,2054.1,2053.5,1.21853188]
[1772075138880,0.47367215,2054.1,2053.5,1.67453837]
[1772075140391,1.69077909,2054.1,2053.5,0.45710649]
[1772075140591,1.69077909,2054.1,2053.5,1.67453113]
[1772075141390,0.47367215,2054.0,2053.5,0.0011]
[1772075142372,1.6908687,2053.9,2053.5,0.0011]
[1772075142566,0.47367215,2053.8,2053.5,0.0011]
[1772075143290,3.16878755,2054.1,2053.5,0.45710649]
[1772075145001,3.16878755,2054.1,2053.5,1.67454005]
[1772075145369,1.21706218,2054.2,2053.6,0.45600649]
[1772075146590,0.47367215,2054.1,2053.5,1.21853356]
[1772075147583,1.69079749,2054.1,2053.5,1.21853356]
[1772075147788,0.47367215,2054.0,2053.5,0.0011]
[1772075148297,1.21796099,2054.3,2053.6,0.45600649]
[1772075148900,0.001,2054.3,2053.6,0.45600649]
[1772075150903,0.001,2054.3,2053.7,1.21731508]
[1772075151097,0.001,2054.3,2053.7,1.67332157]
[1772075151400,0.47467215,2054.3,2053.7,1.67332157]
[1772075153004,1.69164132,2054.3,2053.7,1.67332157]
[1772075154090,1.69164132,2054.3,2053.8,0.0011]
[1772075154398,0.001,2054.1,2053.8,0.0011]
[1772075160515,0.001,2054.3,2053.9,0.45769594]
[1772075161401,1.21681352,2054.6,2053.9,0.45769594]
[1772075161402,1.21681352,2054.6,2054.1,1.51596062]
[1772075161577,4.86685623,2054.8,2054.4,0.29888482]
[1772075161578,0.46902967,2054.8,2054.4,0.29888482]
[1772075162106,0.46902967,2054.8,2054.1,2.5410758]
[1772075162107,0.46902967,2054.7,2054.1,1.324]
[1772075162819,0.46902967,2054.7,2054.2,0.45769594]
[1772075163111,0.46902967,2055.0,2054.3,0.29888482]
[1772075163319,0.46902967,2055.0,2054.1,2.54106995]
[1772075163488,0.46902967,2054.8,2054.1,2.54106995]
[1772075164130,0.46902967,2054.6,2053.8,0.0011]
[1772075165088,0.46902967,2054.4,2053.5,0.0011]
[1772075165629,0.46902967,2054.2,2053.5,0.0011]
[1772075165831,0.46902967,2054.2,2053.8,0.0011]
[1772075165832,0.46902967,2054.0,2053.8,0.0011]
[1772075165984,0.46902967,2054.0,2053.3,0.0011]
[1772075167696,0.46902967,2053.8,2053.3,0.0011]
[1772075168407,0.46902967,2053.4,2053.0,0.0011]
[1772075168598,0.46902967,2053.4,2052.7,0.0011]
[1772075169591,0.46902967,2053.2,2052.7,0.0011]
[1772075169786,0.46902967,2053.1,2052.7,0.0011]
[1772075170084,0.46902967,2053.1,2052.2,1.327]
[1772075171219,1.4942913,2053.2,2052.0,0.0011]
[1772075171220,0.46902967,2052.7,2052.0,0.0011]
[1772075171720,0.46902967,2052.5,2052.0,0.0011]
[1772075172293,0.46902967,2052.5,2051.8,1.67723419]
[1772075172294,0.46902967,2052.5,2051.8,0.0011]
[1772075173015,0.46902967,2052.3,2051.8,0.0011]
[1772075173217,0.46902967,2052.3,2051.3,1.218719]
[1772075173529,0.46902967,2052.6,2051.8,0.45769594]
[1772075173732,0.46902967,2052.4,2051.4,3.17062407]
[1772075173934,0.46902967,2052.4,2051.4,1.67633277]
[1772075176019,0.46902967,2052.4,2051.2,0.45769594]
[1772075176020,0.46902967,2052.2,2051.2,0.45769594]
[1772075176203,0.46902967,2051.9,2050.9,0.45769594]
[1772075176406,0.46902967,2051.6,2050.7,1.326]
[1772075176820,0.46902967,2051.6,2050.7,3.00277031]
[1772075177330,0.46902967,2051.6,2050.7,1.78369594]
[1772075177531,0.46902967,2051.6,2050.6,2.6906508]
[1772075178009,1.68765019,2051.5,2051.4,0.0011]
[1772075178204,0.46902967,2051.4,2051.1,0.0011]
[1772075178409,0.46902967,2051.4,2050.1,6.20474488]
[1772075178410,1.4942913,2051.3,2050.1,1.327]
[1772075178613,1.4942913,2051.3,2050.1,2.54642049]
[1772075178614,0.46902967,2051.2,2050.1,2.54642049]
[1772075179030,0.46902967,2050.8,2049.3,4.87953391]
[1772075179303,0.46902967,2050.8,2049.5,0.45769594]
[1772075179526,0.46902967,2050.8,2049.9,1.95198724]
[1772075179919,1.68808939,2050.8,2050.0,1.21951219]
[1772075180430,1.6880866,2050.8,2050.0,1.21951219]
[1772075180826,2.39298943,2050.9,2050.1,1.95198724]
[1772075181206,1.68788808,2051.1,2050.2,0.45769594]
[1772075181528,0.46902967,2051.0,2050.2,0.45769594]
[1772075181731,1.68780213,2051.3,2050.4,0.45769594]
[1772075181915,7.84544796,2051.7,2050.5,0.45769594]
[1772075181916,1.68769048,2051.5,2050.5,0.45769594]
[1772075182112,0.46902967,2051.4,2050.6,1.21915536]
[1772075183108,0.46902967,2051.4,2050.6,1.6768513]
[1772075183508,1.477,2051.7,2050.9,1.95198724]
[1772075184106,1.477,2051.7,2051.0,1.2189176]
[1772075184726,2.69551025,2051.7,2051.0,1.2189176]
[1772075184921,1.477,2051.7,2051.0,1.2189176]
[1772075185834,2.69550604,2051.7,2051.0,1.2189176]
[1772075186033,1.21836038,2052.0,2051.0,1.69687879]
[1772075186237,0.49659723,2051.9,2051.2,1.21879875]
[1772075189510,1.476,2052.2,2051.3,0.47796119]
[1772075189511,3.19084171,2052.2,2051.3,0.47796119]
[1772075189920,1.97259723,2052.2,2051.3,0.47796119]
[1772075190307,0.49659723,2052.1,2051.2,2.71419005]
[1772075190511,0.49659723,2052.1,2051.2,1.21989875]
[1772075190939,0.49659723,2052.1,2051.2,1.69785994]
[1772075191538,0.49659723,2052.1,2051.4,1.21867992]
[1772075192330,1.476,2052.2,2051.4,1.69664111]
[1772075192513,0.47337031,2053.1,2051.5,0.47283247]